Cogmind - Beta 16 @@@ ROGUE MODE // 2025.12.27 @ 23:48:23 Player: naththebg Result: Destroyed by ZX-YMD(R) with Subdweller Machine Gun Performance ------------- Evolutions (0) 0 Regions Visited (2) 400 Robots Destroyed (18) 90 Value Destroyed (488) 488 Prototype IDs (0) 0 Alien Tech Used (0) 0 Bonus (0) 0 TOTAL SCORE: 978 Bonus ------- None Cogmind --------- Core Integrity 0/250 Matter 270/300 Energy 56/100 System Corruption 0% Temperature Cool (0) Movement Core (50) Location -10/Subcaves Parts ------- > --- POWER (1) -------- (None) > --- PROPULSION (2) --- Light Treads Compact Wheel > --- UTILITY (2) ------ (None) > --- WEAPON (2) ------- Ripper > --- INVENTORY (5) ---- Scrap Shield Multitool Makeshift Sword Peak State ------------ > --- POWER ------------ Ion Engine > --- PROPULSION ------- Light Treads Spiked Treads > --- UTILITY ---------- Improved Heat Sink Medium Storage Unit > --- WEAPON ----------- Medium Laser Ripper > --- INVENTORY -------- Subdweller Power Source Light Treads Aluminum Leg Aluminum Leg Aluminum Leg Compact Wheel High-capacity Matter Pod Makeshift Sword [Rating: 14] Favorites ----------- Power Ion Engine Engine Ion Engine Propulsion Aluminum Leg Treads Light Treads Leg Aluminum Leg Wheel Compact Wheel Utility Improved Heat Sink Device Improved Heat Sink Storage Medium Storage Unit Weapon Medium Laser Energy Gun Medium Laser Launcher Grenade Launcher Special Weapon Multitool Slashing Weapon Ripper Build | -11 -10 -10 ------- Run | Yrd Mat Sub Slots Evolved . | . . . Power . | . . . Propulsion . | . . . Utility . | . . . Weapon . | . . . Parts Attached 20 | 6 7 7 Power 2 | 1 . 1 Engine 2 | 1 . 1 Core . | . . . Reactor . | . . . Propulsion 8 | 2 2 4 Treads 3 | . . 3 Leg 4 | 2 2 . Wheel 1 | . . 1 Hover . | . . . Flight . | . . . Utility 4 | 1 3 . Device 1 | . 1 . Storage 3 | 1 2 . Processor . | . . . Hackware . | . . . Protection . | . . . Artifact . | . . . Weapon 6 | 2 2 2 Energy Gun 3 | 2 1 . Energy Cannon . | . . . Ballistic Gun . | . . . Ballistic Cannon . | . . . Launcher 1 | . 1 . Special Weapon 1 | . . 1 Impact Weapon . | . . . Slashing Weapon 1 | . . 1 Piercing Weapon . | . . . Special Melee Weapon . | . . . Unidentified Prototypes . | . . . Parts Lost 3 | . . 3 Power . | . . . Propulsion 2 | . . 2 Utility . | . . . Weapon 1 | . . 1 Highest Loss Streak 1 | . . 1 To Critical Strikes . | . . . Average Backups 7 | 4 8 7 Power . | . 1 . Propulsion 4 | 2 5 4 Utility . | . . . Weapon 1 | . 1 1 Tool/Special . | . . . Unused Backups 10 | . 3 7 Power 1 | . . 1 Propulsion 5 | . 2 3 Utility 2 | . . 2 Weapon 2 | . 1 1 Tool/Special . | . . . Average Slot Usage (%) 76 | . 91 59 Engine 11 | . 14 7 Treads 5 | . . 10 Leg 19 | . 27 10 Device 8 | . 8 7 Storage 11 | . 14 7 Energy Gun 11 | . 21 . Launcher 5 | . 4 6 Slashing Weapon 3 | . . 7 Peak Build Rating 14 | 6 10 14 Average Rating 7 | 3 8 7 On Entrance 5 | . 6 10 Avg Prop Armor Cover (%) 32 | . . 32 Naked Turns . | . . . Heaviest Build 21 | 14 21 21 Greatest Support 40 | 20 20 40 Greatest Overweight (x) 1 | 1 1 . Average Overweight (x) . | . . . Largest Inventory Capacity 10 | 8 10 10 Average Capacity 8 | 7 9 7 Most Carried 10 | 6 10 10 Average Carried 7 | 4 8 7 Final Capacity 10 | 8 10 5 Final Carried 10 | 6 10 4 Class Distribution -------------------- 100% | Mutant Dominant Class ---------------- Mutant | -10/Materials Mutant | -10/Subcaves Resources | -11 -10 -10 ----------- Run | Yrd Mat Sub Matter Collected 778 | 213 209 356 Remotely . | . . . Salvage Created 528 | . 495 33 Parts 32 | . 28 4 Haulers Intercepted 2 | . 2 . Recyclers Shooed 1 | . 1 . Parts Field Recycled . | . . . Retrieved Matter . | . . . Parts Self-Destructed 7 | . . 7 Prevented . | . . . Parts Restored . | . . . Kills | -11 -10 -10 ------- Run | Yrd Mat Sub Combat Hostiles Destroyed 14 | . 12 2 Melee 1 | . . 1 Guns 6 | . 6 . AOE 7 | . 6 1 Classes Destroyed 7 | . 5 2 Hauler 2 | . 2 . Recycler 1 | . 1 . Watcher 1 | . 1 . Swarmer 3 | . 3 . Grunt 9 | . 9 . Artisan 1 | . . 1 Subdweller 2 | . . 2 Best Kill Streak 4 | . 4 1 Combat Bots Only 3 | . 3 1 Max Kills in Single Turn 2 | . 2 1 Gunslinging . | . . . Exploded 2 | . 2 1 Melee 1 | . . 1 Uniques/NPCs Destroyed . | . . . Combat | -11 -10 -10 -------- Run | Yrd Mat Sub Hostile Shots Fired 70 | . 39 31 Missed 29 | . 15 14 Hits 41 | . 24 17 Projectile 41 | . 24 17 AOE 7 | . . 7 Critical Strikes 2 | . 1 1 Damage Taken 969 | . 295 674 Core 264 | . 66 198 Absorbed by Shields . | . . . Core Remaining (%) 100 | 100 . . Volleys Fired 55 | . 47 8 Largest 2 | . 2 1 Hottest 100 | . 100 50 Shots Fired 86 | . 78 8 Gun 69 | . 66 3 Cannon . | . . . Launcher 17 | . 12 5 Special . | . . . Kinetic . | . . . Thermal 52 | . 49 3 Explosive 17 | . 12 5 Electromagnetic 17 | . 17 . Robot Hit Streak 8 | . 8 5 Robot Miss Streak 3 | . 3 1 Penetration Max . | . . . Secondary Targets . | . . . Shots Hit Robots 58 | . 50 8 Core Hits 32 | 1 28 3 Critical Kills . | . . . Critical Parts Destroyed . | . . . Critical Strikes 4 | . 2 2 Burn 4 | . 2 2 Melee Attacks 4 | . . 4 Impact . | . . . Slashing 4 | . . 4 Piercing . | . . . Sneak Attacks . | . . . Combat Hostiles . | . . . Follow-up Attacks . | . . . Damage Inflicted 1355 | 2 1065 288 Guns 622 | . 584 38 Cannons . | . . . Explosions 613 | . 477 136 Melee 114 | . . 114 Ramming 6 | 2 4 . Kinetic . | . . . Thermal 432 | . 394 38 Explosive 613 | . 477 136 Electromagnetic 190 | . 190 . Impact . | . . . Slashing 114 | . . 114 Piercing . | . . . Highest Corruption . | . . . Average Corruption . | . . . Corruption Purged . | . . . Corruption Blocked . | . . . Overload Shots . | . . . Overflow Damage 16 | . 7 9 Projectiles . | . . . Explosions 7 | . 7 . Melee 9 | . . 9 Knockbacks . | . . . Impact . | . . . Kinetic . | . . . Secondary . | . . . Self-Inflicted Damage 47 | . 9 38 Shots 2 | . 1 1 Rammed . | . . . Targets Rammed 2 | 1 1 . Kicked 2 | 1 1 . Crushed . | . . . Highest Temperature 232 | . 232 . Average Temperature 68 | . 68 . Received Heat Transfer 168 | . 162 6 Effects 1 | . 1 . Energy Bleed 1 | . 1 . Siege Activations . | . . . Martial Activations . | . . . Shielding Activations . | . . . Robots Disrupted . | . . . Combat Hostiles . | . . . Robots Corrupted . | . . . Combat Hostiles . | . . . Parts Fried . | . . . Impact Corruptions . | . . . Robots Melted . | . . . Combat Hostiles . | . . . Parts Melted 2 | . 2 . Heat Transferred 1591 | . 1332 259 Parts Sabotaged . | . . . Parts Stolen . | . . . Parts Stripped . | . . . Power Chain Reactions . | . . . Alert | -11 -10 -10 ------- Run | Yrd Mat Sub Maximum Alert Level 1 | . 1 . Low Security (%) 82 | 100 81 . Level 1 17 | . 18 . Level 2 . | . . . Level 3 . | . . . Level 4 . | . . . Level 5 . | . . . High Security . | . . . Max Security . | . . . Peak Influence 292 | . 292 . Initial . | . . . Average 81 | . 89 . Influence Increases 491 | . 491 . Destroy 0b10 Robot/C 240 | . 240 . Destroy 0b10 Robot/NC 20 | . 20 . Destroy Leader 56 | . 56 . Disable Machine 30 | . 30 . Destroy Structure 55 | . 55 . Lose Combat Pursuer 90 | . 90 . Influence Decreases 491 | . 223 268 Entered New Map 129 | . . 129 Time Decay 352 | . 223 129 Lost Part 10 | . . 10 Squads Dispatched 3 | . 3 . Investigation 3 | . 3 . Extermination . | . . . Reinforcement . | . . . Assault . | . . . Garrison . | . . . Intercept . | . . . Searches Triggered . | . . . Construction Impeded . | . . . Haulers Reinforced . | . . . Active Scanning Responses . | . . . Cargo Convoy Interrupts . | . . . Stealth | -11 -10 -10 --------- Run | Yrd Mat Sub Distress Signals 1 | . 1 . Communications Jammed . | . . . Distress Signals . | . . . Times Spotted 32 | . 21 11 Peak Tracking Total 5 | . 3 5 Tactical Retreats 5 | . 3 2 Traps | -11 -10 -10 ------- Run | Yrd Mat Sub Traps Triggered 2 | . 2 . Indirectly . | . . . Trap Hack Attempts . | . . . Triggered . | . . . Disarmed . | . . . Reprogrammed . | . . . Reused . | . . . Traps Extracted . | . . . Installed . | . . . Triggered . | . . . Machines | -11 -10 -10 ---------- Run | Yrd Mat Sub Machines Disabled 2 | . 2 . Max in Single Turn 1 | . 1 . Machines Repaired . | . . . Machines Dismantled . | . . . Machines Sabotaged . | . . . Overloaded Fab Kills . | . . . Hacking | -11 -10 -10 --------- Run | Yrd Mat Sub Machines Accessed 4 | . 3 1 Terminals 2 | . 2 . Fabricators . | . . . Repair Stations . | . . . Recycling Units 1 | . 1 . Scanalyzers . | . . . Garrison Access . | . . . Total Hacks 13 | . 8 5 Successful 6 | . 1 5 Failed 7 | . 7 . Catastrophic 2 | . 2 . Database Lockouts . | . . . Manual 6 | . 6 . Terminals 6 | . 6 . Fabricators . | . . . Repair Stations . | . . . Recycling Units 2 | . 2 . Scanalyzers . | . . . Garrison Access . | . . . Terminal Hacks 5 | . . 5 Record 5 | . . 5 Fabricator Hacks . | . . . Repair Station Hacks . | . . . Recycling Unit Hacks . | . . . Scanalyzer . | . . . Garrison Access Hacks . | . . . Unauthorized Hacks 1 | . 1 . Terminals 1 | . 1 . Botnet 1 | . 1 . Fabricators . | . . . Repair Stations . | . . . Recycling Units . | . . . Scanalyzers . | . . . Garrison Access . | . . . Data Cores Recovered . | . . . Used . | . . . Hacking Detections 3 | . 3 . Full Trace Events 2 | . 2 . Feedback Events . | . . . Feedback Blocked . | . . . Robot Schematics Acquired . | . . . Robots Built . | . . . Authchips . | . . . Time . | . . . Total Robot Build Rating . | . . . Part Schematics Acquired . | . . . Parts Built . | . . . Authchips . | . . . Time . | . . . Total Part Build Rating . | . . . Part Studies Acquired . | . . . Parts Repaired . | . . . Time . | . . . Parts Recycled . | . . . Recycled Matter . | . . . Retrieved Matter . | . . . Retrieved Components . | . . . Parts Scanalyzed . | . . . Part Schematics Acquired . | . . . Parts Damaged . | . . . Bothacking | -11 -10 -10 ------------ Run | Yrd Mat Sub Used RIF Installer . | . . . Robots Hacked . | . . . Non-combat . | . . . Combat . | . . . Robot Hacks Applied . | . . . Relay Couplers Released . | . . . Fabnet Peak Effective % . | . . . Robots Rewired . | . . . Allies Hacked . | . . . Hacks Repelled . | . . . Allies | -11 -10 -10 -------- Run | Yrd Mat Sub Total Allies . | . . . Largest Group . | . . . Highest-Rated Group . | . . . Highest-Rated Ally . | . . . Total Orders . | . . . Ally Attacks . | . . . Total Damage . | . . . Kills . | . . . Allies Corrupted . | . . . Allies Melted . | . . . Intel | -11 -10 -10 ------- Run | Yrd Mat Sub Active Infowar (turns) . | . . . Robot Analysis Total . | . . . Derelict Logs Recovered 1 | . . 1 Drone Launches . | . . . Drone Recoveries . | . . . Exploration | -11 -10 -10 ------------- Run | Yrd Mat Sub Turns Passed 1226 | 62 623 541 Spaces Moved 1067 | 46 370 651 Core 468 | 15 . 453 Treads 44 | . . 44 Legs 555 | 31 370 154 Wheels . | . . . Hover . | . . . Flight . | . . . Fastest Speed 50 | 50 120 50 Average Speed 92 | 100 125 73 Slowest Speed 190 | 120 190 160 Overloaded Moves . | . . . Propulsion Burnouts . | . . . Robots Hopped . | . . . Potential Cave-ins . | . . . Cave-ins Triggered . | . . . Exploration Rate (%) 43 | 3 78 48 Regions Visited 2 Branch Regions 1 Pre-discovered Areas 1 | . . 1 Known Exits Taken . | . . . Unknown Exits Taken 2 | 1 1 . Scrap Searched 5 | . . 5 Spaces Dug 19 | . 14 5 Terrain Destroyed 83 | . 67 16 Melee . | . . . Projectile . | . . . AOE 83 | . 67 16 Terrain Rammed . | . . . Walls Destroyed . | . . . Machines Disabled . | . . . Actions | -11 -10 -10 --------- Run | Yrd Mat Sub Total 1212 | 59 453 700 Wait 23 | . 10 13 Move 1065 | 45 369 651 Hop . | . . . Pick Up 17 | 7 6 4 Fast Attach 12 | 5 5 2 Attach 6 | 1 . 5 Detach 2 | . 1 1 Swap 8 | . 7 1 Drop 18 | . 7 11 Fire 55 | . 47 8 Melee 4 | . . 4 Ram . | . . . Kick 2 | 1 1 . Crush . | . . . Escape Stasis . | . . . Rewire . | . . . Trap . | . . . Miscellaneous . | . . . Route ------- -11/Scrapyard -10/Materials (discovered 4 exits: [*Mat x3] / *Sub) -10/Subcaves (discovered 3 exits: [*Mat x2] / *Rec) History --------- Turn | Location | Event 20 | -11/Scrapyard | Discovered new exit (range 15) 63 | -11/Scrapyard | Entered Materials 155 | -10/Materials | Discovered new exit (range 16) 312 | -10/Materials | Build established: Mutant 427 | -10/Materials | Discovered new exit (range 10) 650 | -10/Materials | Discovered new exit (range 15) 656 | -10/Materials | Discovered new exit (range 5) 686 | -10/Materials | Entered Subcaves 687 | -10/Subcaves | Approached by a straggling Scientist 735 | -10/Subcaves | Shifting Twisted Machinery released Piercing Trap 737 | -10/Subcaves | Shifting Twisted Machinery released Ripper 810 | -10/Subcaves | Discovered new exit (range 6) 828 | -10/Subcaves | Discovered new exit (range 13) 958 | -10/Subcaves | Core integrity fell below 50% 1004 | -10/Subcaves | Shifting Twisted Machinery released Scrap Shield 1067 | -10/Subcaves | Learned location of Zion (-7) 1078 | -10/Subcaves | Visited Clippyterm 1079 | -10/Subcaves | Identified exit to Recycling 1079 | -10/Subcaves | Learned Factory trap positions 1212 | -10/Subcaves | Core integrity fell below 20% 1220 | -10/Subcaves | Ambushed by angry Subdweller bent on revenge 1227 | -10/Subcaves | Destroyed by ZX-YMD(R) with Subdweller Machine Gun Last Messages --------------- Boring Crew know what became of that one. >>Record "SUBCON Basin" It looks like you want to play with dangerous UFD tech. While I can't recommend taking subatomizers out of the Subcaves, I can warn that doing so is a one-way ticket to summoning unimaginable chaos on any area not hardened against them. That includes... just about anywhere. 01120_ Subatomizers dissect the Sub. Power Source. 01211_ Lgt. Treads destroyed. 01218_ Destroyed Lgt. Ion Engine. 01218_ 7G-ESD(u) cries out in pain. [Achievement: Art Critic] 01218_ 7G-ESD(u) destroyed. 01220_ ZX-YMD(R) angrily emerges from the Twisted Machinery. 01220_ ZX-YMD(R): "SUBHATE!" 01221_ Acquired Multitool. Map ----- +----------------------------------------------------+ | ????? ?## ##""## ##??????????????????# | | ?????# ### # """""" ##????????????????### | | ?????# """" #????????????????# # | | ?????## # #????????????????## # | | ?????# ####### ###???????????????## | | ?????# ##?????## ##?????????????????#"" | | ?????#########???????####?????????????????##" # | | ??????????????????????????????????????????#"" # # | | ??????????????????????????????????????????# " #### | | ??????????????????????????????????????????## #??? | | ????????????????????????????????????#??????# ##?? | | ????????????????????????????????????#"?????# ##? | | ????????????????????????????????? ?##" ##?## #? | | ?????????????????????????????## ##" # ## #? | | ?????????????????????????????# # ""##? | | ?????????????????????????????# "##?? | | ???????????????????????????????#### # ###??? | | ????????????????????????????????### ##### #???? | | ???????????????????????????????## #?## #???? | | ??????????????????????????????## ### #???? | | ????????????????????###???????# ###??? | | ???????????????###### ##??????# # # #??? | | ?????????????" """ R #??????# # ##?? | | ?????????????? " "" ##???### ##? | | ?????????????" " ""### =####; R #? | | ??????????????????????# %@;;; #? | | ??????????????????????# ;# ## # | | ??????????????????????#; ;;# #?## | | ??????????????????????##; ;;# #??? | | ???????????????????????#;;; ;; ###??? | | ???????????????????????## ; ##;; #?????? | | ????????????????????????##; #### ##?????? # | | ?????????????????????????##;; ;#??## ##????????## | | ??????????????????????????#######???###??????????? | | ?????????????????????????????????????????????????? | | ?????????????????????????????????????????????????? | | ?????????????????????????????????????????????????? | | ?????????????????????????????????????????????????? | | ?????????????????????????????????????????????????? | | ?????????????????????????????????????????????????? | | ?????????????????????????????????????????????????? | | ?????????????????????????????????????????????????? | | ?????????????????????????????????????????????????? | | ?????????????????????????????????????????????????? | | ?????????????????????????????????????????????????? | | ?????????????????????????????????????????????????? | | ?????????????????????????????????????????????????? | | ?????????????????????????????????????????????????? | | | | | +----------------------------------------------------+ Best States ------------- Heat Dissipation 39 Energy Generation 10 Energy Capacity 250 Matter Stores 300 Matter Capacity 300 Sight Range 16 Terrain Scan Density 10 Evasion (%) 55 Recoil Reduction 2 Item Schematics ----------------- None Robot Schematics ------------------ None Fabricated ------------ Nothing Repaired ---------- Nothing Studied --------- None Alien Tech Used ----------------- None Achievements -------------- Art Critic Challenges ------------ None Game ------ Seed FlightReflexChronowheel Manual? 0 Play Time 00:10:43 Cumulative 430.2 hours Start 2025.12.27 @ 23:38:48 End 2025.12.27 @ 23:48:23 Sessions 1 Manual Loads 0 Difficulty Rogue Special Mode None Game No. 203 Rogue 203 Adventurer 0 Explorer 0 Win Type - Total 13 Types 9/0/2/0/0/0/0/1/0/1 Lore% 84 Gallery% 82 Achievement% 60 Wizard Run 0 Options --------- Layout 1 ASCII 0 Keyboard 0 Movement Mouse Keybinds 0 Fullscreen 1 Font 24/Smallcaps Map View 50x35 Zoom Use 0% Tactical HUD 1 Map Filters NONE Filters NONE Steam 1 RUN: 43328b8d-9d40-4bcc-9147-5019f2d387de